[Event "Danish Skakligaen 2024-25"]
[Site "Denmark"]
[Date "2024.11.02"]
[Round "1.6"]
[White "Rewitz, Jan"]
[Black "Borge, Nikolaj"]
[Result "0-1"]
[ECO "D24"]
[WhiteElo "2071"]
[BlackElo "2353"]
[Annotator "RC"]
[PlyCount "28"]
[EventDate "2024.11.02"]
[EventType "team-tourn"]
[EventCountry "DEN"]
[SourceTitle "playchess.com"]
[Source "ChessBase"]
[SourceQuality "1"]
[TimeControl "40/5400+30:1800+30"]

1. d4 {[%emt 0:00:04]} d5 {[%emt 0:00:11]} 2. Nf3 {[%emt 0:00:11]} Nf6 {[%emt 0:01:15]} 3. c4 {[%emt 0:00:10]} dxc4 {[%emt 0:00:58]} 4. Nc3 {[%emt 0:01:04]} a6 {[%emt 0:00:15]} 5. a4 {[%emt 0:02:41]} Nc6 {[%emt 0:00:42]} 6. e3 {[%emt 0:11:11]} Na5 {[%emt 0:00:41]} 7. Ne5 {[%emt 0:04:52]} Be6 {[%emt 0:00:59]} 8. g4 {[%emt 0:09:02]} Nd7 {[%emt 0:07:37]} 9. f4 {[%emt 0:10:19]} f6 {[%emt 0:05:27]} 10. d5 {[%emt 0:11:04]} fxe5 {[%emt 0:03:24]} 11. dxe6 {[%emt 0:00:43]} Nc5 {[%emt 0:06:48]} 12. Qxd8+ {[%emt 0:15:20]} Rxd8 {[%emt 0:00:15]} 13. f5 {[%emt 0:00:04]} e4 {[%emt 0:12:06]} 14. Bd2 {[%emt 0:13:57]} Rxd2 0-1

[Event "Danish Skakligaen 2024-25"]
[Site "Denmark"]
[Date "2024.11.02"]
[Round "1.7"]
[White "Ostergaard, Jens"]
[Black "Holm, Filip"]
[Result "1/2-1/2"]
[ECO "E91"]
[WhiteElo "2268"]
[BlackElo "1993"]
[Annotator "RC"]
[PlyCount "63"]
[EventDate "2024.11.02"]
[EventType "team-tourn"]
[EventCountry "DEN"]
[SourceTitle "playchess.com"]
[Source "ChessBase"]
[SourceQuality "1"]
[TimeControl "40/5400+30:1800+30"]

1. d4 {[%emt 0:00:05]} g6 {[%emt 0:00:10]} 2. c4 {[%emt 0:00:15]} Bg7 {[%emt 0:00:08]} 3. Nf3 {[%emt 0:00:13]} Nf6 {[%emt 0:00:16]} 4. Nc3 {[%emt 0:00:36]} d6 {[%emt 0:00:17]} 5. e4 {[%emt 0:00:31]} O-O {[%emt 0:00:16]} 6. Be2 {[%emt 0:00:28]} Bg4 {[%emt 0:04:10]} 7. O-O {[%emt 0:01:19]} Nbd7 {[%emt 0:02:09]} 8. Be3 {[%emt 0:01:34]} Re8 {[%emt 0:03:38]} 9. h3 {[%emt 0:11:22]} Bxf3 {[%emt 0:00:22]} 10. Bxf3 {[%emt 0:00:06]} e5 {[%emt 0:01:00]} 11. d5 {[%emt 0:01:08]} Nb6 {[%emt 0:09:41]} 12. Be2 {[%emt 0:03:41]} Nfd7 {[%emt 0:02:24]} 13. b4 {[%emt 0:03:31]} Qe7 {[%emt 0:05:33]} 14. Nb5 {[%emt 0:08:01]} Rec8 {[%emt 0:00:09]} 15. c5 {[%emt 0:08:59]} a6 {[%emt 0:11:43]} 16. cxb6 {[%emt 0:11:54]} axb5 {[%emt 0:00:12]} 17. bxc7 {[%emt 0:00:08]} Rxc7 {[%emt 0:00:04]} 18. Bxb5 {[%emt 0:01:16]} f5 {[%emt 0:02:57]} 19. f3 {[%emt 0:03:07]} Nf6 {[%emt 0:13:05]} 20. Bd3 {[%emt 0:06:46]} Rc3 {[%emt 0:06:02]} 21. a4 {[%emt 0:03:24]} Nxd5 {[%emt 0:10:00]} 22. Bc4 {[%emt 0:02:05]} Rxc4 {[%emt 0:00:55]} 23. Qxd5+ {[%emt 0:00:12]} Qf7 {[%emt 0:00:04]} 24. Qxd6 {[%emt 0:03:19]} Bf8 {[%emt 0:00:12]} 25. Qd5 {[%emt 0:03:54]} Rxb4 {[%emt 0:06:22]} 26. a5 {[%emt 0:04:48]} Qxd5 {[%emt 0:01:28]} 27. exd5 {[%emt 0:00:06]} Rb5 {[%emt 0:00:07]} 28. Bb6 {[%emt 0:02:29]} Bc5+ {[%emt 0:04:25]} 29. Bxc5 {[%emt 0:01:27]} Rxc5 {[%emt 0:00:16]} 30. Rab1 {[%emt 0:00:25]} Rxd5 {[%emt 0:04:19]} 31. Rxb7 {[%emt 0:00:51]} Rdxa5 {[%emt 0:01:04]} 32. Re1 1/2-1/2

[Event "Danish Skakligaen 2024-25"]
[Site "Denmark"]
[Date "2024.11.02"]
[Round "1.7"]
[White "Brondt, Nicolai Kvist"]
[Black "Nord, Alexander"]
[Result "1/2-1/2"]
[ECO "A20"]
[WhiteElo "2223"]
[BlackElo "2222"]
[Annotator "RC"]
[PlyCount "85"]
[EventDate "2024.11.02"]
[EventType "team-tourn"]
[EventCountry "DEN"]
[SourceTitle "playchess.com"]
[Source "ChessBase"]
[SourceQuality "1"]
[TimeControl "40/5400+30:1800+30"]

1. c4 {[%emt 0:00:11]} e5 {[%emt 0:00:07]} 2. g3 {[%emt 0:00:25]} Nf6 {[%emt 0:00:16]} 3. Bg2 {[%emt 0:00:07]} d5 {[%emt 0:00:19]} 4. cxd5 {[%emt 0:00:13]} Nxd5 {[%emt 0:00:09]} 5. Nf3 {[%emt 0:00:08]} Nc6 {[%emt 0:00:13]} 6. O-O {[%emt 0:00:17]} Nf6 {[%emt 0:04:29]} 7. Nc3 {[%emt 0:07:15]} h6 {[%emt 0:00:24]} 8. d3 {[%emt 0:10:25]} Bd6 {[%emt 0:00:23]} 9. Nd2 {[%emt 0:03:45]} O-O {[%emt 0:06:06]} 10. Nde4 {[%emt 0:08:30]} Bg4 {[%emt 0:10:40]} 11. Be3 {[%emt 0:15:47]} Nd4 {[%emt 0:21:00]} 12. Re1 {[%emt 0:02:44]} c6 {[%emt 0:16:55]} 13. Rb1 {[%emt 0:06:16]} Nxe4 {[%emt 0:09:18]} 14. Nxe4 {[%emt 0:01:34]} Bb4 {[%emt 0:00:29]} 15. Bd2 {[%emt 0:07:58]} Bxd2 {[%emt 0:04:55]} 16. Qxd2 {[%emt 0:01:14]} Qe7 {[%emt 0:00:52]} 17. b4 {[%emt 0:05:38]} f5 {[%emt 0:01:02]} 18. Nc3 {[%emt 0:09:54]} a6 {[%emt 0:05:41]} 19. h3 {[%emt 0:05:14]} Bh5 {[%emt 0:00:09]} 20. Kh2 {[%emt 0:02:22]} f4 {[%emt 0:02:26]} 21. Ne4 {[%emt 0:02:31]} f3 {[%emt 0:02:21]} 22. e3 {[%emt 0:01:30]} fxg2 {[%emt 0:00:13]} 23. exd4 {[%emt 0:00:08]} exd4 {[%emt 0:00:55]} 24. f4 {[%emt 0:00:30]} Qc7 {[%emt 0:07:27]} 25. Qxg2 {[%emt 0:00:05]} Bf7 {[%emt 0:00:08]} 26. Rb2 {[%emt 0:02:13]} b5 {[%emt 0:01:59]} 27. Qf2 {[%emt 0:01:55]} a5 {[%emt 0:00:19]} 28. a3 {[%emt 0:01:09]} axb4 {[%emt 0:00:19]} 29. axb4 {[%emt 0:00:03]} Ra3 {[%emt 0:00:30]} 30. Nc5 {[%emt 0:00:40]} Qd6 {[%emt 0:03:13]} 31. Rbe2 {[%emt 0:01:28]} Rfa8 {[%emt 0:00:19]} 32. Qf3 {[%emt 0:01:10]} Bd5 {[%emt 0:00:41]} 33. Qh5 {[%emt 0:00:30]} Ra2 {[%emt 0:00:24]} 34. Kg1 {[%emt 0:01:48]} Rxe2 {[%emt 0:01:09]} 35. Rxe2 {[%emt 0:00:25]} Kh7 {[%emt 0:00:30]} 36. Kf2 {[%emt 0:00:58]} Ra1 {[%emt 0:01:10]} 37. Qe5 {[%emt 0:01:28]} Qg6 {[%emt 0:00:29]} 38. Ne4 {[%emt 0:00:30]} Rd1 {[%emt 0:00:53]} 39. f5 {[%emt 0:00:31]} Qh5 {[%emt 0:00:23]} 40. Qf4 {[%emt 0:00:28]} Bxe4 {[%emt 0:00:42]} 41. Qxe4 {[%emt 0:05:24]} Kg8 {[%emt 0:05:16]} 42. g4 {[%emt 0:12:03]} Qg5 {[%emt 0:04:56]} 43. Qxd4 {[%emt 0:01:49]} 1/2-1/2

[Event "Danish Skakligaen 2024-25"]
[Site "Denmark"]
[Date "2024.11.02"]
[Round "1.7"]
[White "Nielsen, Lars Aaes"]
[Black "Guindy, Esmat Susanne"]
[Result "0-1"]
[ECO "C11"]
[WhiteElo "2208"]
[BlackElo "2020"]
[Annotator "RC"]
[PlyCount "124"]
[EventDate "2024.11.02"]
[EventType "team-tourn"]
[EventCountry "DEN"]
[SourceTitle "playchess.com"]
[Source "ChessBase"]
[SourceQuality "1"]
[TimeControl "40/5400+30:1800+30"]

1. e4 {[%emt 0:00:03]} e6 {[%emt 0:00:09]} 2. d4 {[%emt 0:00:06]} d5 {[%emt 0:00:13]} 3. Nc3 {[%emt 0:00:07]} Nf6 {[%emt 0:00:22]} 4. Bg5 {[%emt 0:00:26]} dxe4 {[%emt 0:00:08]} 5. Nxe4 {[%emt 0:00:06]} Nbd7 {[%emt 0:00:09]} 6. Qd3 {[%emt 0:03:17]} Be7 {[%emt 0:06:25]} 7. Bxf6 {[%emt 0:01:52]} Nxf6 {[%emt 0:00:51]} 8. O-O-O {[%emt 0:01:49]} c6 {[%emt 0:06:52]} 9. f4 {[%emt 0:03:18]} b6 {[%emt 0:04:52]} 10. Nf3 {[%emt 0:08:39]} Bb7 {[%emt 0:07:05]} 11. Nxf6+ {[%emt 0:05:36]} Bxf6 {[%emt 0:01:57]} 12. Qe3 {[%emt 0:00:40]} Qd5 {[%emt 0:07:14]} 13. c4 {[%emt 0:11:06]} Qa5 {[%emt 0:00:34]} 14. a3 {[%emt 0:03:19]} O-O-O {[%emt 0:01:07]} 15. b4 {[%emt 0:10:36]} Qa4 {[%emt 0:04:15]} 16. Be2 {[%emt 0:02:23]} a5 {[%emt 0:03:44]} 17. bxa5 {[%emt 0:01:05]} Qxa5 {[%emt 0:01:07]} 18. Ne5 {[%emt 0:01:52]} Rhf8 {[%emt 0:05:33]} 19. Bf3 {[%emt 0:07:28]} Qa4 {[%emt 0:15:09]} 20. Qc3 {[%emt 0:04:48]} c5 {[%emt 0:06:13]} 21. dxc5 {[%emt 0:01:15]} bxc5 {[%emt 0:02:57]} 22. Rxd8+ {[%emt 0:00:39]} Rxd8 {[%emt 0:01:04]} 23. Rd1 {[%emt 0:01:12]} Bxf3 {[%emt 0:01:24]} 24. Rxd8+ {[%emt 0:00:07]} Kxd8 {[%emt 0:00:59]} 25. gxf3 {[%emt 0:00:15]} Ke7 {[%emt 0:04:04]} 26. Kb2 {[%emt 0:08:47]} g5 {[%emt 0:05:22]} 27. fxg5 {[%emt 0:08:57]} Bxg5 {[%emt 0:00:47]} 28. h3 {[%emt 0:02:26]} Bf6 {[%emt 0:02:00]} 29. f4 {[%emt 0:00:13]} Qa8 {[%emt 0:00:40]} 30. Qd2 {[%emt 0:01:11]} Qb8+ {[%emt 0:00:52]} 31. Kc2 {[%emt 0:01:54]} Bxe5 {[%emt 0:00:42]} 32. fxe5 {[%emt 0:00:04]} Qxe5 {[%emt 0:00:08]} 33. Qd3 {[%emt 0:03:12]} f5 {[%emt 0:00:34]} 34. a4 {[%emt 0:02:16]} Qh2+ {[%emt 0:02:41]} 35. Kc1 {[%emt 0:03:11]} Qb8 {[%emt 0:02:01]} 36. a5 {[%emt 0:02:48]} Qb4 {[%emt 0:01:16]} 37. a6 {[%emt 0:00:02]} Qa4 {[%emt 0:00:50]} 38. Qc3 {[%emt 0:00:05]} Qxa6 {[%emt 0:00:24]} 39. Qg7+ {[%emt 0:00:05]} Kd6 {[%emt 0:00:29]} 40. Qf8+ {[%emt 0:00:40]} Kc6 {[%emt 0:01:03]} 41. Qe8+ {[%emt 0:30:32]} Kd6 {[%emt 0:34:15]} 42. Qf8+ {[%emt 0:02:16]} Ke5 {[%emt 0:00:59]} 43. Qxc5+ {[%emt 0:00:00]} Ke4 {[%emt 0:00:00]} 44. Kb2 {[%emt 0:00:00]} f4 {[%emt 0:00:00]} 45. Kb3 {[%emt 0:00:00]} Kd3 {[%emt 0:00:00]} 46. Qc7 {[%emt 0:00:00]} f3 {[%emt 0:00:00]} 47. Qxh7+ {[%emt 0:00:00]} Ke3 {[%emt 0:00:00]} 48. Qh6+ {[%emt 0:00:00]} Ke2 {[%emt 0:00:00]} 49. Qh5 {[%emt 0:00:00]} Qb6+ {[%emt 0:00:00]} 50. Ka4 {[%emt 0:00:00]} Qe3 {[%emt 0:00:00]} 51. c5 {[%emt 0:00:00]} Qe4+ {[%emt 0:00:00]} 52. Kb5 {[%emt 0:00:00]} Ke1 {[%emt 0:00:00]} 53. Qg5 {[%emt 0:00:00]} f2 {[%emt 0:00:00]} 54. Qc1+ {[%emt 0:00:00]} Ke2 {[%emt 0:00:00]} 55. Qb2+ {[%emt 0:00:00]} Kf3 {[%emt 0:00:00]} 56. Qc3+ {[%emt 0:00:00]} Kg2 {[%emt 0:00:00]} 57. Qd2 {[%emt 0:00:00]} Kg1 {[%emt 0:00:00]} 58. Qg5+ {[%emt 0:00:30]} Kh1 {[%emt 0:00:00]} 59. Qf6 {[%emt 0:03:27]} Qe2+ {[%emt 0:00:00]} 60. Kb6 {[%emt 0:00:30]} f1=Q {[%emt 0:00:00]} 61. Qxf1+ {[%emt 0:00:03]} Qxf1 {[%emt 0:00:00]} 62. c6 {[%emt 0:00:02]} Qxh3 {[%emt 0:00:00]} 0-1

[Event "Danish Skakligaen 2024-25"]
[Site "Denmark"]
[Date "2024.11.02"]
[Round "1.7"]
[White "Haubro, Sigfred"]
[Black "Petersen, Steen"]
[Result "0-1"]
[ECO "D04"]
[WhiteElo "2124"]
[BlackElo "2128"]
[Annotator "RC"]
[PlyCount "96"]
[EventDate "2024.11.02"]
[EventType "team-tourn"]
[EventCountry "DEN"]
[SourceTitle "playchess.com"]
[Source "ChessBase"]
[SourceQuality "1"]
[TimeControl "40/5400+30:1800+30"]

1. Nf3 {[%emt 0:00:06]} d5 {[%emt 0:00:11]} 2. d4 {[%emt 0:01:29]} Nf6 {[%emt 0:00:42]} 3. e3 {[%emt 0:00:18]} Bg4 {[%emt 0:02:36]} 4. Be2 {[%emt 0:04:47]} e6 {[%emt 0:01:07]} 5. O-O {[%emt 0:00:09]} Be7 {[%emt 0:00:17]} 6. c4 {[%emt 0:00:35]} O-O {[%emt 0:01:41]} 7. Nbd2 {[%emt 0:05:05]} c5 {[%emt 0:10:22]} 8. b3 {[%emt 0:04:40]} Nc6 {[%emt 0:04:24]} 9. Bb2 {[%emt 0:02:59]} Rc8 {[%emt 0:05:12]} 10. Rc1 {[%emt 0:06:01]} cxd4 {[%emt 0:08:14]} 11. Nxd4 {[%emt 0:03:08]} Bxe2 {[%emt 0:00:27]} 12. Qxe2 {[%emt 0:00:34]} Nxd4 {[%emt 0:03:35]} 13. exd4 {[%emt 0:06:06]} Qa5 {[%emt 0:07:26]} 14. a3 {[%emt 0:04:26]} Qa6 {[%emt 0:06:20]} 15. Qe3 {[%emt 0:02:49]} dxc4 {[%emt 0:08:49]} 16. bxc4 {[%emt 0:03:58]} Qb6 {[%emt 0:01:52]} 17. Rb1 {[%emt 0:04:32]} Qc7 {[%emt 0:01:17]} 18. Qf3 {[%emt 0:01:05]} Qc6 {[%emt 0:01:41]} 19. Qe2 {[%emt 0:04:42]} Rfe8 {[%emt 0:01:10]} 20. Rfd1 {[%emt 0:07:21]} Bd6 {[%emt 0:09:37]} 21. g3 {[%emt 0:04:33]} h6 {[%emt 0:01:57]} 22. Qd3 {[%emt 0:07:38]} Be7 {[%emt 0:04:54]} 23. Bc3 {[%emt 0:04:57]} Nd7 {[%emt 0:05:39]} 24. Bb2 {[%emt 0:04:45]} Red8 {[%emt 0:01:25]} 25. Qe2 {[%emt 0:01:36]} Bf6 {[%emt 0:02:04]} 26. Rdc1 {[%emt 0:03:58]} Nb6 {[%emt 0:02:29]} 27. Qe3 {[%emt 0:05:55]} Qa4 {[%emt 0:03:46]} 28. c5 {[%emt 0:01:14]} Nd5 {[%emt 0:00:19]} 29. Qd3 {[%emt 0:00:32]} b6 {[%emt 0:01:17]} 30. Rc4 {[%emt 0:01:00]} Qa6 {[%emt 0:00:54]} 31. Ne4 {[%emt 0:00:23]} Be7 {[%emt 0:01:46]} 32. Qb3 {[%emt 0:01:13]} f5 {[%emt 0:01:53]} 33. Ra4 {[%emt 0:01:17]} Qe2 {[%emt 0:00:59]} 34. Nc3 {[%emt 0:01:07]} Qf3 {[%emt 0:00:12]} 35. Rxa7 {[%emt 0:01:59]} bxc5 {[%emt 0:00:18]} 36. Rxe7 {[%emt 0:00:25]} Nxe7 {[%emt 0:00:37]} 37. Qxe6+ {[%emt 0:00:07]} Kh8 {[%emt 0:00:58]} 38. d5 {[%emt 0:01:24]} Ng8 {[%emt 0:00:28]} 39. Rd1 {[%emt 0:00:33]} Rb8 {[%emt 0:00:16]} 40. Ba1 {[%emt 0:00:14]} Rb3 {[%emt 0:00:18]} 41. Ne2 {[%emt 0:05:21]} Rb7 {[%emt 0:07:37]} 42. Nc3 {[%emt 0:06:52]} Re7 {[%emt 0:07:39]} 43. Qc6 {[%emt 0:01:16]} Rde8 {[%emt 0:00:56]} 44. Rf1 {[%emt 0:00:16]} Re1 {[%emt 0:02:26]} 45. Qa6 {[%emt 0:00:36]} Nf6 {[%emt 0:04:08]} 46. d6 {[%emt 0:03:15]} Ng4 {[%emt 0:00:39]} 47. d7 {[%emt 0:04:57]} Qxf2+ {[%emt 0:00:25]} 48. Kh1 {[%emt 0:00:07]} Qxh2# {[%emt 0:00:11]} 0-1

[Event "Danish Skakligaen 2024-25"]
[Site "Denmark"]
[Date "2024.11.02"]
[Round "1.7"]
[White "Kakulidis, Ellen"]
[Black "Pedersen, Finn"]
[Result "0-1"]
[ECO "D10"]
[WhiteElo "2031"]
[BlackElo "2273"]
[Annotator "RC"]
[PlyCount "148"]
[EventDate "2024.11.02"]
[EventType "team-tourn"]
[EventCountry "DEN"]
[SourceTitle "playchess.com"]
[Source "ChessBase"]
[SourceQuality "1"]
[TimeControl "40/5400+30:1800+30"]

1. d4 {[%emt 0:00:02]} d5 {[%emt 0:00:26]} 2. c4 {[%emt 0:00:06]} c6 {[%emt 0:00:07]} 3. cxd5 {[%emt 0:00:05]} cxd5 {[%emt 0:00:11]} 4. Nc3 {[%emt 0:00:16]} Nf6 {[%emt 0:00:29]} 5. Nf3 {[%emt 0:00:06]} a6 {[%emt 0:01:05]} 6. Bf4 {[%emt 0:00:24]} e6 {[%emt 0:00:56]} 7. e3 {[%emt 0:00:13]} Nc6 {[%emt 0:01:43]} 8. Ne5 {[%emt 0:01:40]} Nxe5 {[%emt 0:01:23]} 9. Bxe5 {[%emt 0:01:34]} Bd6 {[%emt 0:01:03]} 10. Bxd6 {[%emt 0:00:59]} Qxd6 {[%emt 0:00:09]} 11. Bd3 {[%emt 0:00:38]} b5 {[%emt 0:01:30]} 12. O-O {[%emt 0:01:29]} Bb7 {[%emt 0:00:18]} 13. Qe2 {[%emt 0:12:54]} O-O {[%emt 0:00:57]} 14. Nb1 {[%emt 0:08:39]} e5 {[%emt 0:04:25]} 15. Nd2 {[%emt 0:22:51]} exd4 {[%emt 0:02:04]} 16. exd4 {[%emt 0:00:15]} Rfe8 {[%emt 0:02:48]} 17. Qf3 {[%emt 0:04:32]} Re7 {[%emt 0:04:22]} 18. Nb3 {[%emt 0:01:31]} Ne4 {[%emt 0:03:29]} 19. Rfc1 {[%emt 0:05:46]} Rae8 {[%emt 0:09:48]} 20. a3 {[%emt 0:15:18]} g6 {[%emt 0:14:44]} 21. h3 {[%emt 0:08:04]} Kg7 {[%emt 0:03:39]} 22. Nc5 {[%emt 0:04:05]} Bc8 {[%emt 0:01:20]} 23. b4 {[%emt 0:03:15]} Nd2 {[%emt 0:03:00]} 24. Qg3 {[%emt 0:01:36]} Qf6 {[%emt 0:00:58]} 25. Rd1 {[%emt 0:02:29]} Qxd4 {[%emt 0:05:42]} 26. Rac1 {[%emt 0:01:13]} Qb2 {[%emt 0:01:42]} 27. Qf4 {[%emt 0:01:38]} Nc4 {[%emt 0:01:56]} 28. Bf1 {[%emt 0:01:23]} Kg8 {[%emt 0:06:07]} 29. Rxd5 {[%emt 0:00:38]} Ne3 {[%emt 0:00:48]} 30. fxe3 {[%emt 0:01:14]} Qxc1 {[%emt 0:00:18]} 31. Kh2 {[%emt 0:00:30]} Qxe3 {[%emt 0:02:01]} 32. Qf6 {[%emt 0:00:32]} Re5 {[%emt 0:01:20]} 33. Rd8 {[%emt 0:00:30]} Rf5 {[%emt 0:03:17]} 34. Ne6 {[%emt 0:00:06]} Qxe6 {[%emt 0:01:41]} 35. Qxe6 {[%emt 0:00:12]} Rxd8 {[%emt 0:03:19]} 36. Qe7 {[%emt 0:00:01]} Rfd5 {[%emt 0:01:27]} 37. Be2 {[%emt 0:00:29]} R5d7 {[%emt 0:01:49]} 38. Qf6 {[%emt 0:00:50]} Bb7 {[%emt 0:00:22]} 39. Bf3 {[%emt 0:00:19]} Bxf3 {[%emt 0:01:26]} 40. Qxf3 {[%emt 0:00:02]} Rd3 {[%emt 0:01:27]} 41. Qf6 {[%emt 0:30:18]} R8d6 {[%emt 0:30:16]} 42. Qa1 {[%emt 0:00:00]} Re6 {[%emt 0:00:00]} 43. a4 {[%emt 0:00:00]} bxa4 {[%emt 0:00:00]} 44. Qxa4 {[%emt 0:00:00]} Rd5 {[%emt 0:00:00]} 45. Qc2 {[%emt 0:00:00]} h5 {[%emt 0:00:00]} 46. Qc8+ {[%emt 0:00:00]} Kg7 {[%emt 0:00:00]} 47. Qc3+ {[%emt 0:00:00]} Kh7 {[%emt 0:00:00]} 48. Qc4 {[%emt 0:00:00]} Rf5 {[%emt 0:00:00]} 49. g4 {[%emt 0:00:00]} Rfe5 {[%emt 0:00:00]} 50. gxh5 {[%emt 0:01:35]} Rxh5 {[%emt 0:00:00]} 51. Qf4 {[%emt 0:00:32]} Kg8 {[%emt 0:00:00]} 52. Qd4 {[%emt 0:00:53]} Rhe5 {[%emt 0:02:04]} 53. Qd8+ {[%emt 0:00:07]} Re8 {[%emt 0:00:35]} 54. Qd6 {[%emt 0:00:41]} R5e6 {[%emt 0:02:12]} 55. Qd5 {[%emt 0:00:01]} Rb8 {[%emt 0:02:31]} 56. Qc4 {[%emt 0:00:13]} Reb6 {[%emt 0:03:03]} 57. Kg3 {[%emt 0:00:12]} Rb5 {[%emt 0:01:58]} 58. Qd3 {[%emt 0:00:29]} a5 {[%emt 0:00:41]} 59. Qa3 {[%emt 0:03:10]} Rg5+ {[%emt 0:01:13]} 60. Kf4 {[%emt 0:00:42]} Rf5+ {[%emt 0:00:41]} 61. Kg3 {[%emt 0:00:39]} Rxb4 {[%emt 0:00:26]} 62. Qc3 {[%emt 0:00:15]} Rbf4 {[%emt 0:01:27]} 63. Qc8+ {[%emt 0:00:25]} Kh7 {[%emt 0:00:44]} 64. h4 {[%emt 0:00:41]} Rb4 {[%emt 0:02:37]} 65. Qc3 {[%emt 0:01:28]} Rbb5 {[%emt 0:02:08]} 66. Qc4 {[%emt 0:00:34]} Rbc5 {[%emt 0:00:57]} 67. Qd4 {[%emt 0:00:26]} Rh5 {[%emt 0:00:39]} 68. Qf6 {[%emt 0:00:52]} Rcf5 {[%emt 0:00:19]} 69. Qd4 {[%emt 0:00:07]} g5 {[%emt 0:01:56]} 70. hxg5 {[%emt 0:00:21]} Rhxg5+ {[%emt 0:00:09]} 71. Kh3 {[%emt 0:00:43]} Rg6 {[%emt 0:01:17]} 72. Kh4 {[%emt 0:01:01]} Rf1 {[%emt 0:00:48]} 73. Qd5 {[%emt 0:00:44]} Rh1+ {[%emt 0:00:36]} 74. Qxh1 {[%emt 0:00:06]} Rh6+ {[%emt 0:00:04]} 0-1

[Event "Danish Skakligaen 2024-25"]
[Site "Denmark"]
[Date "2024.11.02"]
[Round "1.8"]
[White "Holmsgaard, Henrik"]
[Black "Wahlgreen, Noah Krug"]
[Result "0-1"]
[ECO "B10"]
[WhiteElo "2147"]
[BlackElo "2090"]
[Annotator "RC"]
[PlyCount "94"]
[EventDate "2024.11.02"]
[EventType "team-tourn"]
[EventCountry "DEN"]
[SourceTitle "playchess.com"]
[Source "ChessBase"]
[SourceQuality "1"]
[TimeControl "40/5400+30:1800+30"]

1. e4 {[%emt 0:00:07]} c6 {[%emt 0:00:03]} 2. c4 {[%emt 0:00:18]} d5 {[%emt 0:00:10]} 3. exd5 {[%emt 0:00:06]} cxd5 {[%emt 0:00:04]} 4. cxd5 {[%emt 0:00:07]} Nf6 {[%emt 0:00:03]} 5. Nc3 {[%emt 0:00:13]} Nxd5 {[%emt 0:01:12]} 6. Nf3 {[%emt 0:00:19]} Nc6 {[%emt 0:00:19]} 7. Bb5 {[%emt 0:03:05]} e6 {[%emt 0:04:36]} 8. O-O {[%emt 0:02:20]} Be7 {[%emt 0:00:33]} 9. d4 {[%emt 0:00:44]} O-O {[%emt 0:02:40]} 10. Re1 {[%emt 0:00:54]} Bf6 {[%emt 0:05:15]} 11. Ne4 {[%emt 0:07:35]} Qb6 {[%emt 0:06:40]} 12. Nxf6+ {[%emt 0:09:43]} Nxf6 {[%emt 0:00:03]} 13. Bxc6 {[%emt 0:07:44]} bxc6 {[%emt 0:04:00]} 14. b3 {[%emt 0:00:46]} Bb7 {[%emt 0:10:48]} 15. Ba3 {[%emt 0:05:45]} Rfd8 {[%emt 0:03:14]} 16. Bc5 {[%emt 0:07:02]} Qc7 {[%emt 0:02:08]} 17. Ne5 {[%emt 0:01:42]} Nd7 {[%emt 0:07:31]} 18. Be7 {[%emt 0:02:41]} Re8 {[%emt 0:01:12]} 19. Bh4 {[%emt 0:00:17]} f6 {[%emt 0:08:26]} 20. Nc4 {[%emt 0:13:32]} c5 {[%emt 0:06:18]} 21. dxc5 {[%emt 0:02:32]} Qc6 {[%emt 0:02:43]} 22. f3 {[%emt 0:02:32]} Nxc5 {[%emt 0:01:24]} 23. Qd6 Rad8 {[%emt 0:01:31]} 24. Qxc6 {[%emt 0:03:51]} Bxc6 {[%emt 0:00:02]} 25. Red1 {[%emt 0:00:32]} Nd3 {[%emt 0:03:51]} 26. Na5 {[%emt 0:04:34]} Ba8 {[%emt 0:00:21]} 27. Bf2 {[%emt 0:09:09]} Rd7 {[%emt 0:05:36]} 28. Be3 {[%emt 0:00:50]} e5 {[%emt 0:00:53]} 29. b4 {[%emt 0:03:00]} e4 {[%emt 0:01:50]} 30. f4 {[%emt 0:00:17]} Rc7 {[%emt 0:00:31]} 31. b5 {[%emt 0:01:43]} Rb8 {[%emt 0:02:30]} 32. a4 {[%emt 0:00:45]} Bd5 {[%emt 0:00:35]} 33. g3 {[%emt 0:04:24]} Rbc8 {[%emt 0:02:10]} 34. Rab1 {[%emt 0:02:29]} h5 {[%emt 0:08:37]} 35. Nb3 {[%emt 0:01:07]} h4 {[%emt 0:00:32]} 36. a5 {[%emt 0:02:51]} h3 {[%emt 0:00:06]} 37. Nd4 {[%emt 0:00:52]} Kf7 {[%emt 0:03:10]} 38. b6 {[%emt 0:01:13]} axb6 {[%emt 0:00:18]} 39. axb6 {[%emt 0:00:02]} Rc4 {[%emt 0:03:02]} 40. Rb5 {[%emt 0:01:00]} Bb7 {[%emt 0:00:53]} 41. Rh5 {[%emt 0:11:51]} Rd8 {[%emt 0:11:54]} 42. Ne2 {[%emt 0:01:05]} Rc2 {[%emt 0:04:45]} 43. Kf1 {[%emt 0:01:09]} Bc8 {[%emt 0:06:29]} 44. Rd2 {[%emt 0:04:25]} Rxd2 {[%emt 0:05:31]} 45. Bxd2 {[%emt 0:00:06]} e3 {[%emt 0:00:06]} 46. Bxe3 {[%emt 0:01:29]} Re8 {[%emt 0:00:15]} 47. Rb5 {[%emt 0:06:54]} Bb7 0-1

[Event "Danish Skakligaen 2024-25"]
[Site "Denmark"]
[Date "2024.11.02"]
[Round "1.8"]
[White "Rendboe, John Filip"]
[Black "Skou, Niels"]
[Result "1/2-1/2"]
[ECO "D35"]
[WhiteElo "2145"]
[BlackElo "2054"]
[Annotator "RC"]
[PlyCount "58"]
[EventDate "2024.11.02"]
[EventType "team-tourn"]
[EventCountry "DEN"]
[SourceTitle "playchess.com"]
[Source "ChessBase"]
[SourceQuality "1"]
[TimeControl "40/5400+30:1800+30"]

1. d4 {[%emt 0:00:20]} d5 {[%emt 0:00:24]} 2. c4 {[%emt 0:00:13]} e6 {[%emt 0:00:12]} 3. cxd5 {[%emt 0:00:39]} exd5 {[%emt 0:00:23]} 4. Nc3 {[%emt 0:00:08]} Nf6 {[%emt 0:01:12]} 5. Bg5 {[%emt 0:00:40]} Be7 {[%emt 0:00:34]} 6. e3 {[%emt 0:00:13]} c6 {[%emt 0:00:16]} 7. Bd3 {[%emt 0:00:14]} Nbd7 {[%emt 0:00:30]} 8. Qc2 {[%emt 0:01:01]} h6 {[%emt 0:00:19]} 9. Bh4 {[%emt 0:00:38]} Nh5 {[%emt 0:00:31]} 10. Bxe7 {[%emt 0:00:56]} Qxe7 {[%emt 0:00:06]} 11. Nge2 {[%emt 0:00:47]} Nb6 {[%emt 0:01:38]} 12. O-O {[%emt 0:04:02]} O-O {[%emt 0:01:10]} 13. a3 {[%emt 0:00:54]} a5 {[%emt 0:01:39]} 14. Rab1 {[%emt 0:11:11]} a4 {[%emt 0:00:11]} 15. b4 {[%emt 0:01:28]} axb3 {[%emt 0:02:40]} 16. Qxb3 {[%emt 0:02:50]} Nc4 {[%emt 0:04:39]} 17. Bxc4 {[%emt 0:00:18]} Rxa3 {[%emt 0:05:44]} 18. Qb4 {[%emt 0:03:45]} Qxb4 {[%emt 0:00:18]} 19. Rxb4 {[%emt 0:00:03]} dxc4 {[%emt 0:00:10]} 20. Rxc4 {[%emt 0:00:11]} Nf6 {[%emt 0:06:25]} 21. Rb4 {[%emt 0:05:49]} Rd8 {[%emt 0:14:30]} 22. e4 {[%emt 0:08:24]} b5 {[%emt 0:09:28]} 23. d5 {[%emt 0:06:41]} c5 {[%emt 0:15:32]} 24. Rxb5 {[%emt 0:01:47]} Ba6 {[%emt 0:00:16]} 25. Rxc5 {[%emt 0:02:57]} Bxe2 {[%emt 0:00:31]} 26. Nxe2 {[%emt 0:00:29]} Nxe4 {[%emt 0:00:12]} 27. Rb5 {[%emt 0:04:56]} Ra2 {[%emt 0:04:24]} 28. Ng3 {[%emt 0:09:30]} Nxg3 {[%emt 0:08:22]} 29. hxg3 {[%emt 0:00:31]} Rd2 {[%emt 0:00:13]} 1/2-1/2